{"text_format":"1","workbook":"xlsx","n_sheets":12,"sheets":["Análise de vendas anual","Custo da Empresa","Controle de Estoque","Fornecedores","Clientes","Controle de Pedidos - Julho","Controle de Pedidos - Agosto","Controle de Pedidos - Setembro"," Controle de Pedidos - Outubro","Controle de Pedidos - Novembro","Controle de Pedidos - Dezembro","Planilha1"],"not_rendered":{"charts":1,"images":0,"macros":1,"external_links":0,"defined_names":2,"comments":0,"pivot_tables":0},"unopened":[],"bounds":{"document_bytes":16777216,"sheet_cells":100000,"rows_first":2000,"rows_last":500,"rows_between":2000,"halvings":0,"cell_chars":16384,"cell_head_chars":4096},"cells_cut":0,"cells_raw":0,"read":"whole","date_system":"1900"}

{"sheet":"Análise de vendas anual","index":0,"n_rows":11,"n_cols":5,"rows_kept":11,"cut":false,"hidden":false,"merged":[]}
[]
[]
[null,"Mês","Faturamento","Custo total da empresa ","Lucro"]
[null,"Julho",{"$f":"'Controle de Pedidos - Julho'!G36","v":3450},150.0,{"$f":"C4-D4","v":3300}]
[null,"agosto",{"$f":"'Controle de Pedidos - Agosto'!G36","v":5200},400.0,4800]
[null,"setembro",{"$f":"'Controle de Pedidos - Setembro'!G36","v":2600},{"$f":"'Custo da Empresa'!E36","v":400},2200]
[null,"outubro",{"$f":"' Controle de Pedidos - Outubro'!G36","v":3200},200.0,3000]
[null,"novembro",{"$f":"'Controle de Pedidos - Novembro'!G36","v":2000},400.0,1600]
[null,"dezembro",{"$f":"'Controle de Pedidos - Dezembro'!G36","v":4100},500.0,3600]
[]
[null,"Total",{"$f":"SUM(C4:C10)","v":20550},2050,18500]

{"sheet":"Custo da Empresa","index":1,"n_rows":60,"n_cols":7,"rows_kept":60,"cut":false,"hidden":false,"merged":[]}
[null,null,"CONTROLE DE CUSTOS"]
[]
["Mês","Data","Tipo de Custo","Descrição","Valor","Status de pagamento","Observações"]
["julho","xx/xx/xxxx","Aluguel",null,300.0]
["julho",null,"Compra de estoque",null,500.0]
["julho",null,"Conta de energia",null,80.0]
["julho",null,"Marketing",null,50.0]
[]
[]
[]
[]
[]
[]
[]
[]
["Total JULHO",null,null,null,{"$f":"SUM(E4:E7)","v":930}]
[]
["agosto",null,"Aluguel",null,300.0]
["agosto",null,"Compra de estoque",null,500.0]
["agosto",null,"Conta de energia",null,100.0]
["agosto",null,"Marketing",null,50.0]
["agosto"]
[]
[]
[]
["Total agosto",null,null,null,{"$f":"SUM(E18:E25)","v":950}]
[]
["setembro",null,"Aluguel",null,300.0]
["setembro",null,"Compra de estoque",null,0.0]
["setembro",null,"Conta de energia",null,80.0]
["setembro",null,"Marketing",null,20.0]
["setembro"]
["setembro"]
["setembro"]
[]
["Total Setembro",null,null,null,{"$f":"SUM(E28:E35)","v":400}]
[]
["outubro",null,"Aluguel",null,300.0]
["outubro",null,"Compra de estoque",null,500.0]
["outubro",null,"Conta de energia",null,50.0]
["outubro",null,"Marketing",null,50.0]
["outubro"]
["outubro"]
[]
["Total Outubro",null,null,null,{"$f":"SUM(E37:E44)","v":900}]
[]
["novembro"]
["novembro",null,"Aluguel",null,300.0]
["novembro",null,"Compra de estoque",null,0.0]
["novembro",null,"Energica",null,100.0]
["novembro",null,"Marketing",null,150.0]
[]
["Total Novembro",null,null,null,{"$f":"SUM(E47:E52)","v":550}]
[]
["dezembro",null,"Aluguel",null,0.0]
["dezembro",null,"Compra de estoque",null,200.0]
["dezembro",null,"Energica",null,70.0]
["dezembro",null,"Marketing",null,0.0]
[]
["Total dezembro",null,null,null,{"$f":"SUM(E54:E59)","v":270}]

{"sheet":"Controle de Estoque","index":2,"n_rows":113,"n_cols":11,"rows_kept":113,"cut":false,"hidden":false,"merged":[]}
[null,null,null,"CONTROLE DE ESTOQUE"]
[]
["Identificação do Item","Nome do item","Tipo","Tamanho","Quantidade comprada","Quantidade vendida","Quantidade em estoque","Valor unitário da peça (R$)","Faturamento por peça (R$)","Status do estoque","Observações"]
[null,null,null,null,100.0,45.0,{"$f":"E4-F4","v":55},100.0,{"$f":"H4*F4","v":4500},"Em estoque"]
[null,null,null,null,50.0,40.0,10,79.9,3196,"Em estoque"]
[null,null,null,null,75.0,35.0,40,39.9,1396.5,"Em estoque"]
[null,null,null,null,null,null,0,null,0,"Em estoque"]
[null,null,null,null,null,null,0,null,0,"Em estoque"]
[null,null,null,null,null,null,0,null,0,"Em estoque"]
[null,null,null,null,null,null,0,null,0,"Em estoque"]
[null,null,null,null,null,null,0,null,0,"Em estoque"]
[null,null,null,null,null,null,0,null,0,"Em estoque"]
[null,null,null,null,null,null,0,null,0,"Em estoque"]
[null,null,null,null,null,null,0,null,0,"Em estoque"]
[null,null,null,null,null,null,0,null,0,"Em estoque"]
[null,null,null,null,null,null,0,null,0,"Em estoque"]
[null,null,null,null,null,null,null,null,0,"Em estoque"]
[null,null,null,null,null,null,null,null,0,"Em estoque"]
[null,null,null,null,null,null,null,null,0,"Em estoque"]
[null,null,null,null,null,null,null,null,0,"Em estoque"]
[null,null,null,null,null,null,null,null,0,"Em estoque"]
[null,null,null,null,null,null,null,null,0,"Em estoque"]
[null,null,null,null,null,null,null,null,0,"Em estoque"]
[null,null,null,null,null,null,null,null,0,"Em estoque"]
[null,null,null,null,null,null,null,null,0,"Em estoque"]
[null,null,null,null,null,null,null,null,0,"Em estoque"]
[null,null,null,null,null,null,null,null,0,"Em estoque"]
[null,null,null,null,null,null,null,null,0,"Em estoque"]
[null,null,null,null,null,null,null,null,0,"Em estoque"]
[null,null,null,null,null,null,null,null,0,"Em estoque"]
[null,null,null,null,null,null,null,null,0,"Em estoque"]
[null,null,null,null,null,null,null,null,0,"Em estoque"]
[null,null,null,null,null,null,null,null,0,"Em estoque"]
[null,null,null,null,null,null,null,null,0,"Em estoque"]
[null,null,null,null,null,null,null,null,0,"Em estoque"]
[null,null,null,null,null,null,null,null,0,"Em estoque"]
[null,null,null,null,null,null,null,null,0,"Em estoque"]
[null,null,null,null,null,null,null,null,0,"Em estoque"]
[null,null,null,null,null,null,null,null,0,"Em estoque"]
[null,null,null,null,null,null,null,null,0,"Em estoque"]
[null,null,null,null,null,null,null,null,0,"Em estoque"]
[null,null,null,null,null,null,null,null,0,"Em estoque"]
[null,null,null,null,null,null,null,null,0,"Em estoque"]
[null,null,null,null,null,null,null,null,0,"Em estoque"]
[null,null,null,null,null,null,null,null,0,"Em estoque"]
[null,null,null,null,null,null,null,null,0,"Em estoque"]
[null,null,null,null,null,null,null,null,0,"Em estoque"]
[null,null,null,null,null,null,null,null,0,"Em estoque"]
[null,null,null,null,null,null,null,null,0,"Em estoque"]
[null,null,null,null,null,null,null,null,0,"Em estoque"]
[null,null,null,null,null,null,null,null,0,"Em estoque"]
[null,null,null,null,null,null,null,null,0,"Em estoque"]
[null,null,null,null,null,null,null,null,0,"Em estoque"]
[null,null,null,null,null,null,null,null,0,"Em estoque"]
[null,null,null,null,null,null,null,null,0,"Em estoque"]
[null,null,null,null,null,null,null,null,0,"Em estoque"]
[null,null,null,null,null,null,null,null,0,"Em estoque"]
[null,null,null,null,null,null,null,null,0,"Em estoque"]
[null,null,null,null,null,null,null,null,0,"Em estoque"]
[null,null,null,null,null,null,null,null,0,"Em estoque"]
[null,null,null,null,null,null,null,null,0,"Em estoque"]
[null,null,null,null,null,null,null,null,0,"Em estoque"]
[null,null,null,null,null,null,null,null,0,"Em estoque"]
[null,null,null,null,null,null,null,null,0,"Em estoque"]
[null,null,null,null,null,null,null,null,0,"Em estoque"]
[null,null,null,null,null,null,null,null,0,"Em estoque"]
[null,null,null,null,null,null,null,null,0,"Em estoque"]
[null,null,null,null,null,null,null,null,0,"Em estoque"]
[null,null,null,null,null,null,null,null,0,"Em estoque"]
[null,null,null,null,null,null,null,null,0,"Em estoque"]
[null,null,null,null,null,null,null,null,0,"Em estoque"]
[null,null,null,null,null,null,null,null,0,"Em estoque"]
[null,null,null,null,null,null,null,null,0,"Em estoque"]
[null,null,null,null,null,null,null,null,0,"Em estoque"]
[null,null,null,null,null,null,null,null,0,"Em estoque"]
[null,null,null,null,null,null,null,null,0,"Em estoque"]
[null,null,null,null,null,null,null,null,0,"Em estoque"]
[null,null,null,null,null,null,null,null,0,"Em estoque"]
[null,null,null,null,null,null,null,null,0,"Em estoque"]
[null,null,null,null,null,null,null,null,0,"Em estoque"]
[null,null,null,null,null,null,null,null,0,"Em estoque"]
[null,null,null,null,null,null,null,null,0,"Em estoque"]
[null,null,null,null,null,null,null,null,0,"Em estoque"]
[null,null,null,null,null,null,null,null,0,"Em estoque"]
[null,null,null,null,null,null,null,null,0,"Em estoque"]
[null,null,null,null,null,null,null,null,0,"Em estoque"]
[null,null,null,null,null,null,null,null,0,"Em estoque"]
[null,null,null,null,null,null,null,null,0,"Em estoque"]
[null,null,null,null,null,null,null,null,0,"Em estoque"]
[null,null,null,null,null,null,null,null,0,"Em estoque"]
[null,null,null,null,null,null,null,null,0,"Em estoque"]
[null,null,null,null,null,null,null,null,0,"Em estoque"]
[null,null,null,null,null,null,null,null,0,"Em estoque"]
[null,null,null,null,null,null,null,null,0,"Em estoque"]
[null,null,null,null,null,null,null,null,0,"Em estoque"]
[null,null,null,null,null,null,null,null,0,"Em estoque"]
[null,null,null,null,null,null,null,null,0,"Em estoque"]
[null,null,null,null,null,null,null,null,0,"Em estoque"]
[null,null,null,null,null,null,null,null,0,"Em estoque"]
[null,null,null,null,null,null,null,null,0,"Em estoque"]
[null,null,null,null,null,null,null,null,0,"Em estoque"]
[null,null,null,null,null,null,null,null,0,"Em estoque"]
[null,null,null,null,null,null,null,null,0,"Em estoque"]
[null,null,null,null,null,null,null,null,0,"Em estoque"]
[null,null,null,null,null,null,null,null,0,"Em estoque"]
[null,null,null,null,null,null,null,null,0,"Em estoque"]
[null,null,null,null,null,null,null,null,0,"Em estoque"]
[null,null,null,null,null,null,null,null,0,"Em estoque"]
[null,null,null,null,null,null,null,null,0,"Em estoque"]
[null,null,null,null,null,null,null,null,0,"Em estoque"]
[null,null,null,null,null,null,null,null,0,"Em estoque"]
[null,null,null,null,null,null,null,null,0,"Em estoque"]
[null,null,null,null,null,null,null,null,0,"Em estoque"]

{"sheet":"Fornecedores","index":3,"n_rows":4,"n_cols":7,"rows_kept":4,"cut":false,"hidden":false,"merged":[]}
[null,null,null,"FORNECEDORES"]
[]
["Nome do fornecedor","Tipo de produto","Nome do responsável","Telefone","E-mail","Endereço","Confiabilidade"]
[null,null,null,null,null,null,"4 estrelas"]

{"sheet":"Clientes","index":4,"n_rows":222,"n_cols":6,"rows_kept":222,"cut":false,"hidden":false,"merged":[]}
[null,null,null,"LISTA DE CLIENTE"]
[]
["Número de clientes","Nome","Telefone","E-mail","Data de aniversário","Cliente desde:"]
["1"]
["2"]
["3"]
["4"]
["5"]
["6"]
["7"]
["8"]
["9"]
["10"]
["11"]
["12"]
["13"]
["14"]
["15"]
["16"]
["17"]
["18"]
["19"]
["20"]
["21"]
["22"]
["23"]
["24"]
["25"]
["26"]
["27"]
["28"]
["29"]
["30"]
["31"]
["32"]
["33"]
["34"]
["35"]
["36"]
["37"]
["38"]
["39"]
["40"]
["41"]
["42"]
["43"]
["44"]
["45"]
["46"]
["47"]
["48"]
["49"]
["50"]
["51"]
["52"]
["53"]
["54"]
["55"]
["56"]
["57"]
["58"]
["59"]
["60"]
["61"]
["62"]
["63"]
["64"]
["65"]
["66"]
["67"]
["68"]
["69"]
["70"]
["71"]
["72"]
["73"]
["74"]
["75"]
["76"]
["77"]
["78"]
["79"]
["80"]
["81"]
["82"]
["83"]
["84"]
["85"]
["86"]
["87"]
["88"]
["89"]
["90"]
["91"]
["92"]
["93"]
["94"]
["95"]
["96"]
["97"]
["98"]
["99"]
["100"]
["101"]
["102"]
["103"]
["104"]
["105"]
["106"]
["107"]
["108"]
["109"]
["110"]
["111"]
["112"]
["113"]
["114"]
["115"]
["116"]
["117"]
["118"]
["119"]
["120"]
["121"]
["122"]
["123"]
["124"]
["125"]
["126"]
["127"]
["128"]
["129"]
["130"]
["131"]
["132"]
["133"]
["134"]
["135"]
["136"]
["137"]
["138"]
["139"]
["140"]
["141"]
["142"]
["143"]
["144"]
["145"]
["146"]
["147"]
["148"]
["149"]
["150"]
["151"]
["152"]
["153"]
["154"]
["155"]
["156"]
["157"]
["158"]
["159"]
["160"]
["161"]
["162"]
["163"]
["164"]
["165"]
["166"]
["167"]
["168"]
["169"]
["170"]
["171"]
["172"]
["173"]
["174"]
["175"]
["176"]
["177"]
["178"]
["179"]
["180"]
["181"]
["182"]
["183"]
["184"]
["185"]
["186"]
["187"]
["188"]
["189"]
["190"]
["191"]
["192"]
["193"]
["194"]
["195"]
["196"]
["197"]
["198"]
["199"]
["200"]
["201"]
["202"]
["203"]
["204"]
["205"]
["206"]
["207"]
["208"]
["209"]
["210"]
["211"]
["212"]
["213"]
["214"]
["215"]
["216"]
["217"]
["218"]
["219"]

{"sheet":"Controle de Pedidos - Julho","index":5,"n_rows":36,"n_cols":11,"rows_kept":36,"cut":false,"hidden":false,"merged":[]}
[null,null,null,null,null,"CONTROLE DE PEDIDOS"]
[]
["Mês","Data do pedido","Nome da cliente","Telefone","E-mail","Descrição do Pedido","Valor do pedido (R$)","Status do pedido","Plataforma de pedido","Data do pagamento","Status do pagamento"]
["julho","dd/mm/aaa",null,null,null,null,1000.0,"Aceito","Telefone","dd/mm/aaa","A receber"]
["julho","dd/mm/aaa",null,null,null,null,1500.0,null,null,"dd/mm/aaa"]
["julho","dd/mm/aaa",null,null,null,null,800.0,null,null,"dd/mm/aaa"]
["julho","dd/mm/aaa",null,null,null,null,70.0,null,null,"dd/mm/aaa"]
["julho","dd/mm/aaa",null,null,null,null,80.0,null,null,"dd/mm/aaa"]
["julho","dd/mm/aaa",null,null,null,null,null,null,null,"dd/mm/aaa"]
["julho","dd/mm/aaa",null,null,null,null,null,null,null,"dd/mm/aaa"]
["julho","dd/mm/aaa",null,null,null,null,null,null,null,"dd/mm/aaa"]
["julho","dd/mm/aaa",null,null,null,null,null,null,null,"dd/mm/aaa"]
["julho","dd/mm/aaa",null,null,null,null,null,null,null,"dd/mm/aaa"]
["julho","dd/mm/aaa",null,null,null,null,null,null,null,"dd/mm/aaa"]
["julho","dd/mm/aaa",null,null,null,null,null,null,null,"dd/mm/aaa"]
["julho","dd/mm/aaa",null,null,null,null,null,null,null,"dd/mm/aaa"]
["julho","dd/mm/aaa",null,null,null,null,null,null,null,"dd/mm/aaa"]
["julho","dd/mm/aaa",null,null,null,null,null,null,null,"dd/mm/aaa"]
["julho","dd/mm/aaa",null,null,null,null,null,null,null,"dd/mm/aaa"]
["julho","dd/mm/aaa",null,null,null,null,null,null,null,"dd/mm/aaa"]
["julho","dd/mm/aaa",null,null,null,null,null,null,null,"dd/mm/aaa"]
["julho","dd/mm/aaa",null,null,null,null,null,null,null,"dd/mm/aaa"]
["julho","dd/mm/aaa",null,null,null,null,null,null,null,"dd/mm/aaa"]
["julho","dd/mm/aaa",null,null,null,null,null,null,null,"dd/mm/aaa"]
["julho","dd/mm/aaa",null,null,null,null,null,null,null,"dd/mm/aaa"]
["julho","dd/mm/aaa",null,null,null,null,null,null,null,"dd/mm/aaa"]
["julho","dd/mm/aaa",null,null,null,null,null,null,null,"dd/mm/aaa"]
["julho","dd/mm/aaa",null,null,null,null,null,null,null,"dd/mm/aaa"]
["julho","dd/mm/aaa",null,null,null,null,null,null,null,"dd/mm/aaa"]
["julho","dd/mm/aaa",null,null,null,null,null,null,null,"dd/mm/aaa"]
["julho","dd/mm/aaa",null,null,null,null,null,null,null,"dd/mm/aaa"]
["julho","dd/mm/aaa",null,null,null,null,null,null,null,"dd/mm/aaa"]
["julho","dd/mm/aaa",null,null,null,null,null,null,null,"dd/mm/aaa"]
[null,"dd/mm/aaa",null,null,null,null,null,null,null,"dd/mm/aaa"]
[]
["Total",null,null,null,null,null,{"$f":"SUM(G4:G35)","v":3450}]

{"sheet":"Controle de Pedidos - Agosto","index":6,"n_rows":36,"n_cols":11,"rows_kept":36,"cut":false,"hidden":false,"merged":[]}
[null,null,null,null,null,"CONTROLE DE PEDIDOS"]
[]
["Mês","Data do pedido","Nome da cliente","Telefone","E-mail","Descrição do Pedido","Valor do pedido (R$)","Status do pedido","Plataforma de pedido","Data do pagamento","Status do pagamento"]
["julho","dd/mm/aaa",null,null,null,null,1500.0,"Aceito","Telefone","dd/mm/aaa","A receber"]
["julho","dd/mm/aaa",null,null,null,null,2000.0,null,null,"dd/mm/aaa"]
["julho","dd/mm/aaa",null,null,null,null,800.0,null,null,"dd/mm/aaa"]
["julho","dd/mm/aaa",null,null,null,null,500.0,null,null,"dd/mm/aaa"]
["julho","dd/mm/aaa",null,null,null,null,400.0,null,null,"dd/mm/aaa"]
["julho","dd/mm/aaa",null,null,null,null,null,null,null,"dd/mm/aaa"]
["julho","dd/mm/aaa",null,null,null,null,null,null,null,"dd/mm/aaa"]
["julho","dd/mm/aaa",null,null,null,null,null,null,null,"dd/mm/aaa"]
["julho","dd/mm/aaa",null,null,null,null,null,null,null,"dd/mm/aaa"]
["julho","dd/mm/aaa",null,null,null,null,null,null,null,"dd/mm/aaa"]
["julho","dd/mm/aaa",null,null,null,null,null,null,null,"dd/mm/aaa"]
["julho","dd/mm/aaa",null,null,null,null,null,null,null,"dd/mm/aaa"]
["julho","dd/mm/aaa",null,null,null,null,null,null,null,"dd/mm/aaa"]
["julho","dd/mm/aaa",null,null,null,null,null,null,null,"dd/mm/aaa"]
["julho","dd/mm/aaa",null,null,null,null,null,null,null,"dd/mm/aaa"]
["julho","dd/mm/aaa",null,null,null,null,null,null,null,"dd/mm/aaa"]
["julho","dd/mm/aaa",null,null,null,null,null,null,null,"dd/mm/aaa"]
["julho","dd/mm/aaa",null,null,null,null,null,null,null,"dd/mm/aaa"]
["julho","dd/mm/aaa",null,null,null,null,null,null,null,"dd/mm/aaa"]
["julho","dd/mm/aaa",null,null,null,null,null,null,null,"dd/mm/aaa"]
["julho","dd/mm/aaa",null,null,null,null,null,null,null,"dd/mm/aaa"]
["julho","dd/mm/aaa",null,null,null,null,null,null,null,"dd/mm/aaa"]
["julho","dd/mm/aaa",null,null,null,null,null,null,null,"dd/mm/aaa"]
["julho","dd/mm/aaa",null,null,null,null,null,null,null,"dd/mm/aaa"]
["julho","dd/mm/aaa",null,null,null,null,null,null,null,"dd/mm/aaa"]
["julho","dd/mm/aaa",null,null,null,null,null,null,null,"dd/mm/aaa"]
["julho","dd/mm/aaa",null,null,null,null,null,null,null,"dd/mm/aaa"]
["julho","dd/mm/aaa",null,null,null,null,null,null,null,"dd/mm/aaa"]
["julho","dd/mm/aaa",null,null,null,null,null,null,null,"dd/mm/aaa"]
["julho","dd/mm/aaa",null,null,null,null,null,null,null,"dd/mm/aaa"]
[null,"dd/mm/aaa",null,null,null,null,null,null,null,"dd/mm/aaa"]
[]
["Total",null,null,null,null,null,{"$f":"SUM(G4:G35)","v":5200}]

{"sheet":"Controle de Pedidos - Setembro","index":7,"n_rows":36,"n_cols":11,"rows_kept":36,"cut":false,"hidden":false,"merged":[]}
[null,null,null,null,null,"CONTROLE DE PEDIDOS"]
[]
["Mês","Data do pedido","Nome da cliente","Telefone","E-mail","Descrição do Pedido","Valor do pedido (R$)","Status do pedido","Plataforma de pedido","Data do pagamento","Status do pagamento"]
["julho","dd/mm/aaa",null,null,null,null,900.0,"Aceito","Telefone","dd/mm/aaa","A receber"]
["julho","dd/mm/aaa",null,null,null,null,400.0,null,null,"dd/mm/aaa"]
["julho","dd/mm/aaa",null,null,null,null,500.0,null,null,"dd/mm/aaa"]
["julho","dd/mm/aaa",null,null,null,null,700.0,null,null,"dd/mm/aaa"]
["julho","dd/mm/aaa",null,null,null,null,100.0,null,null,"dd/mm/aaa"]
["julho","dd/mm/aaa",null,null,null,null,null,null,null,"dd/mm/aaa"]
["julho","dd/mm/aaa",null,null,null,null,null,null,null,"dd/mm/aaa"]
["julho","dd/mm/aaa",null,null,null,null,null,null,null,"dd/mm/aaa"]
["julho","dd/mm/aaa",null,null,null,null,null,null,null,"dd/mm/aaa"]
["julho","dd/mm/aaa",null,null,null,null,null,null,null,"dd/mm/aaa"]
["julho","dd/mm/aaa",null,null,null,null,null,null,null,"dd/mm/aaa"]
["julho","dd/mm/aaa",null,null,null,null,null,null,null,"dd/mm/aaa"]
["julho","dd/mm/aaa",null,null,null,null,null,null,null,"dd/mm/aaa"]
["julho","dd/mm/aaa",null,null,null,null,null,null,null,"dd/mm/aaa"]
["julho","dd/mm/aaa",null,null,null,null,null,null,null,"dd/mm/aaa"]
["julho","dd/mm/aaa",null,null,null,null,null,null,null,"dd/mm/aaa"]
["julho","dd/mm/aaa",null,null,null,null,null,null,null,"dd/mm/aaa"]
["julho","dd/mm/aaa",null,null,null,null,null,null,null,"dd/mm/aaa"]
["julho","dd/mm/aaa",null,null,null,null,null,null,null,"dd/mm/aaa"]
["julho","dd/mm/aaa",null,null,null,null,null,null,null,"dd/mm/aaa"]
["julho","dd/mm/aaa",null,null,null,null,null,null,null,"dd/mm/aaa"]
["julho","dd/mm/aaa",null,null,null,null,null,null,null,"dd/mm/aaa"]
["julho","dd/mm/aaa",null,null,null,null,null,null,null,"dd/mm/aaa"]
["julho","dd/mm/aaa",null,null,null,null,null,null,null,"dd/mm/aaa"]
["julho","dd/mm/aaa",null,null,null,null,null,null,null,"dd/mm/aaa"]
["julho","dd/mm/aaa",null,null,null,null,null,null,null,"dd/mm/aaa"]
["julho","dd/mm/aaa",null,null,null,null,null,null,null,"dd/mm/aaa"]
["julho","dd/mm/aaa",null,null,null,null,null,null,null,"dd/mm/aaa"]
["julho","dd/mm/aaa",null,null,null,null,null,null,null,"dd/mm/aaa"]
["julho","dd/mm/aaa",null,null,null,null,null,null,null,"dd/mm/aaa"]
[null,"dd/mm/aaa",null,null,null,null,null,null,null,"dd/mm/aaa"]
[]
["Total",null,null,null,null,null,{"$f":"SUM(G4:G35)","v":2600}]

{"sheet":" Controle de Pedidos - Outubro","index":8,"n_rows":36,"n_cols":11,"rows_kept":36,"cut":false,"hidden":false,"merged":[]}
[null,null,null,null,null,"CONTROLE DE PEDIDOS"]
[]
["Mês","Data do pedido","Nome da cliente","Telefone","E-mail","Descrição do Pedido","Valor do pedido (R$)","Status do pedido","Plataforma de pedido","Data do pagamento","Status do pagamento"]
["julho","dd/mm/aaa",null,null,null,null,100.0,"Aceito","Telefone","dd/mm/aaa","A receber"]
["julho","dd/mm/aaa",null,null,null,null,400.0,null,null,"dd/mm/aaa"]
["julho","dd/mm/aaa",null,null,null,null,500.0,null,null,"dd/mm/aaa"]
["julho","dd/mm/aaa",null,null,null,null,1500.0,null,null,"dd/mm/aaa"]
["julho","dd/mm/aaa",null,null,null,null,700.0,null,null,"dd/mm/aaa"]
["julho","dd/mm/aaa",null,null,null,null,null,null,null,"dd/mm/aaa"]
["julho","dd/mm/aaa",null,null,null,null,null,null,null,"dd/mm/aaa"]
["julho","dd/mm/aaa",null,null,null,null,null,null,null,"dd/mm/aaa"]
["julho","dd/mm/aaa",null,null,null,null,null,null,null,"dd/mm/aaa"]
["julho","dd/mm/aaa",null,null,null,null,null,null,null,"dd/mm/aaa"]
["julho","dd/mm/aaa",null,null,null,null,null,null,null,"dd/mm/aaa"]
["julho","dd/mm/aaa",null,null,null,null,null,null,null,"dd/mm/aaa"]
["julho","dd/mm/aaa",null,null,null,null,null,null,null,"dd/mm/aaa"]
["julho","dd/mm/aaa",null,null,null,null,null,null,null,"dd/mm/aaa"]
["julho","dd/mm/aaa",null,null,null,null,null,null,null,"dd/mm/aaa"]
["julho","dd/mm/aaa",null,null,null,null,null,null,null,"dd/mm/aaa"]
["julho","dd/mm/aaa",null,null,null,null,null,null,null,"dd/mm/aaa"]
["julho","dd/mm/aaa",null,null,null,null,null,null,null,"dd/mm/aaa"]
["julho","dd/mm/aaa",null,null,null,null,null,null,null,"dd/mm/aaa"]
["julho","dd/mm/aaa",null,null,null,null,null,null,null,"dd/mm/aaa"]
["julho","dd/mm/aaa",null,null,null,null,null,null,null,"dd/mm/aaa"]
["julho","dd/mm/aaa",null,null,null,null,null,null,null,"dd/mm/aaa"]
["julho","dd/mm/aaa",null,null,null,null,null,null,null,"dd/mm/aaa"]
["julho","dd/mm/aaa",null,null,null,null,null,null,null,"dd/mm/aaa"]
["julho","dd/mm/aaa",null,null,null,null,null,null,null,"dd/mm/aaa"]
["julho","dd/mm/aaa",null,null,null,null,null,null,null,"dd/mm/aaa"]
["julho","dd/mm/aaa",null,null,null,null,null,null,null,"dd/mm/aaa"]
["julho","dd/mm/aaa",null,null,null,null,null,null,null,"dd/mm/aaa"]
["julho","dd/mm/aaa",null,null,null,null,null,null,null,"dd/mm/aaa"]
["julho","dd/mm/aaa",null,null,null,null,null,null,null,"dd/mm/aaa"]
[null,"dd/mm/aaa",null,null,null,null,null,null,null,"dd/mm/aaa"]
[]
["Total",null,null,null,null,null,{"$f":"SUM(G4:G35)","v":3200}]

{"sheet":"Controle de Pedidos - Novembro","index":9,"n_rows":36,"n_cols":11,"rows_kept":36,"cut":false,"hidden":false,"merged":[]}
[null,null,null,null,null,"CONTROLE DE PEDIDOS"]
[]
["Mês","Data do pedido","Nome da cliente","Telefone","E-mail","Descrição do Pedido","Valor do pedido (R$)","Status do pedido","Plataforma de pedido","Data do pagamento","Status do pagamento"]
["julho","dd/mm/aaa",null,null,null,null,800.0,"Aceito","Telefone","dd/mm/aaa","A receber"]
["julho","dd/mm/aaa",null,null,null,null,400.0,null,null,"dd/mm/aaa"]
["julho","dd/mm/aaa",null,null,null,null,100.0,null,null,"dd/mm/aaa"]
["julho","dd/mm/aaa",null,null,null,null,200.0,null,null,"dd/mm/aaa"]
["julho","dd/mm/aaa",null,null,null,null,500.0,null,null,"dd/mm/aaa"]
["julho","dd/mm/aaa",null,null,null,null,null,null,null,"dd/mm/aaa"]
["julho","dd/mm/aaa",null,null,null,null,null,null,null,"dd/mm/aaa"]
["julho","dd/mm/aaa",null,null,null,null,null,null,null,"dd/mm/aaa"]
["julho","dd/mm/aaa",null,null,null,null,null,null,null,"dd/mm/aaa"]
["julho","dd/mm/aaa",null,null,null,null,null,null,null,"dd/mm/aaa"]
["julho","dd/mm/aaa",null,null,null,null,null,null,null,"dd/mm/aaa"]
["julho","dd/mm/aaa",null,null,null,null,null,null,null,"dd/mm/aaa"]
["julho","dd/mm/aaa",null,null,null,null,null,null,null,"dd/mm/aaa"]
["julho","dd/mm/aaa",null,null,null,null,null,null,null,"dd/mm/aaa"]
["julho","dd/mm/aaa",null,null,null,null,null,null,null,"dd/mm/aaa"]
["julho","dd/mm/aaa",null,null,null,null,null,null,null,"dd/mm/aaa"]
["julho","dd/mm/aaa",null,null,null,null,null,null,null,"dd/mm/aaa"]
["julho","dd/mm/aaa",null,null,null,null,null,null,null,"dd/mm/aaa"]
["julho","dd/mm/aaa",null,null,null,null,null,null,null,"dd/mm/aaa"]
["julho","dd/mm/aaa",null,null,null,null,null,null,null,"dd/mm/aaa"]
["julho","dd/mm/aaa",null,null,null,null,null,null,null,"dd/mm/aaa"]
["julho","dd/mm/aaa",null,null,null,null,null,null,null,"dd/mm/aaa"]
["julho","dd/mm/aaa",null,null,null,null,null,null,null,"dd/mm/aaa"]
["julho","dd/mm/aaa",null,null,null,null,null,null,null,"dd/mm/aaa"]
["julho","dd/mm/aaa",null,null,null,null,null,null,null,"dd/mm/aaa"]
["julho","dd/mm/aaa",null,null,null,null,null,null,null,"dd/mm/aaa"]
["julho","dd/mm/aaa",null,null,null,null,null,null,null,"dd/mm/aaa"]
["julho","dd/mm/aaa",null,null,null,null,null,null,null,"dd/mm/aaa"]
["julho","dd/mm/aaa",null,null,null,null,null,null,null,"dd/mm/aaa"]
["julho","dd/mm/aaa",null,null,null,null,null,null,null,"dd/mm/aaa"]
[null,"dd/mm/aaa",null,null,null,null,null,null,null,"dd/mm/aaa"]
[]
["Total",null,null,null,null,null,{"$f":"SUM(G4:G35)","v":2000}]

{"sheet":"Controle de Pedidos - Dezembro","index":10,"n_rows":36,"n_cols":11,"rows_kept":36,"cut":false,"hidden":false,"merged":[]}
[null,null,null,null,null,"CONTROLE DE PEDIDOS"]
[]
["Mês","Data do pedido","Nome da cliente","Telefone","E-mail","Descrição do Pedido","Valor do pedido (R$)","Status do pedido","Plataforma de pedido","Data do pagamento","Status do pagamento"]
["julho","dd/mm/aaa",null,null,null,null,1700.0,"Aceito","Telefone","dd/mm/aaa","A receber"]
["julho","dd/mm/aaa",null,null,null,null,400.0,null,null,"dd/mm/aaa"]
["julho","dd/mm/aaa",null,null,null,null,800.0,null,null,"dd/mm/aaa"]
["julho","dd/mm/aaa",null,null,null,null,400.0,null,null,"dd/mm/aaa"]
["julho","dd/mm/aaa",null,null,null,null,800.0,null,null,"dd/mm/aaa"]
["julho","dd/mm/aaa",null,null,null,null,null,null,null,"dd/mm/aaa"]
["julho","dd/mm/aaa",null,null,null,null,null,null,null,"dd/mm/aaa"]
["julho","dd/mm/aaa",null,null,null,null,null,null,null,"dd/mm/aaa"]
["julho","dd/mm/aaa",null,null,null,null,null,null,null,"dd/mm/aaa"]
["julho","dd/mm/aaa",null,null,null,null,null,null,null,"dd/mm/aaa"]
["julho","dd/mm/aaa",null,null,null,null,null,null,null,"dd/mm/aaa"]
["julho","dd/mm/aaa",null,null,null,null,null,null,null,"dd/mm/aaa"]
["julho","dd/mm/aaa",null,null,null,null,null,null,null,"dd/mm/aaa"]
["julho","dd/mm/aaa",null,null,null,null,null,null,null,"dd/mm/aaa"]
["julho","dd/mm/aaa",null,null,null,null,null,null,null,"dd/mm/aaa"]
["julho","dd/mm/aaa",null,null,null,null,null,null,null,"dd/mm/aaa"]
["julho","dd/mm/aaa",null,null,null,null,null,null,null,"dd/mm/aaa"]
["julho","dd/mm/aaa",null,null,null,null,null,null,null,"dd/mm/aaa"]
["julho","dd/mm/aaa",null,null,null,null,null,null,null,"dd/mm/aaa"]
["julho","dd/mm/aaa",null,null,null,null,null,null,null,"dd/mm/aaa"]
["julho","dd/mm/aaa",null,null,null,null,null,null,null,"dd/mm/aaa"]
["julho","dd/mm/aaa",null,null,null,null,null,null,null,"dd/mm/aaa"]
["julho","dd/mm/aaa",null,null,null,null,null,null,null,"dd/mm/aaa"]
["julho","dd/mm/aaa",null,null,null,null,null,null,null,"dd/mm/aaa"]
["julho","dd/mm/aaa",null,null,null,null,null,null,null,"dd/mm/aaa"]
["julho","dd/mm/aaa",null,null,null,null,null,null,null,"dd/mm/aaa"]
["julho","dd/mm/aaa",null,null,null,null,null,null,null,"dd/mm/aaa"]
["julho","dd/mm/aaa",null,null,null,null,null,null,null,"dd/mm/aaa"]
["julho","dd/mm/aaa",null,null,null,null,null,null,null,"dd/mm/aaa"]
["julho","dd/mm/aaa",null,null,null,null,null,null,null,"dd/mm/aaa"]
[null,"dd/mm/aaa",null,null,null,null,null,null,null,"dd/mm/aaa"]
[]
["Total",null,null,null,null,null,{"$f":"SUM(G4:G35)","v":4100}]

{"sheet":"Planilha1","index":11,"n_rows":15,"n_cols":8,"rows_kept":15,"cut":false,"hidden":true,"merged":[]}
[]
[null,null,null,null,null,"Recebimentos","Pagamentos","Saldo"]
[null,null,null,null,"Atrasado",{"$f":"SUMIFS(Recebimentos!$C$9:$C$125300,Recebimentos!$E$9:$E$125300,\"\",Recebimentos!$F$9:$F$125300,\"ATR\")","v":"#N/A"},{"$f":"SUMIFS(Pagamentos!$C$9:$C$125300,Pagamentos!$E$9:$E$125300,\"\",Pagamentos!$F$9:$F$125300,\"ATR\")","v":"#N/A"},{"$f":"F3-G3","v":"#N/A"}]
[null,null,{"$f":"MONTH(TODAY())","v":7},{"$f":"YEAR(TODAY())","v":2024},{"$f":"CONCAT(C4,\"/\",D4)","v":"#N/A"},{"$f":"SUMIFS(Recebimentos!$C$9:$C$30000,Recebimentos!$G$9:$G$30000,Planilha1!C4,Recebimentos!$H$9:$H$30000,Planilha1!D4,Recebimentos!$E$9:$E$30000,\"\")","v":"#N/A"},{"$f":"SUMIFS(Pagamentos!$C$9:$C$30000,Pagamentos!$G$9:$G$30000,Planilha1!C4,Pagamentos!$H$9:$H$30000,Planilha1!D4,Pagamentos!$E$9:$E$30000,\"\")","v":"#N/A"},"#N/A"]
[null,null,{"$f":"IF(C4=12,1,C4+1)","v":8},{"$f":"IF(C5=1,D4+1,D4)","v":2024},"#N/A",{"$f":"SUMIFS(Recebimentos!$C$9:$C$30000,Recebimentos!$G$9:$G$30000,Planilha1!C5,Recebimentos!$H$9:$H$30000,Planilha1!D5,Recebimentos!$E$9:$E$30000,\"\")","v":"#N/A"},{"$f":"SUMIFS(Pagamentos!$C$9:$C$30000,Pagamentos!$G$9:$G$30000,Planilha1!C5,Pagamentos!$H$9:$H$30000,Planilha1!D5,Pagamentos!$E$9:$E$30000,\"\")","v":"#N/A"},"#N/A"]
[null,null,9,2024,"#N/A",{"$f":"SUMIFS(Recebimentos!$C$9:$C$30000,Recebimentos!$G$9:$G$30000,Planilha1!C6,Recebimentos!$H$9:$H$30000,Planilha1!D6,Recebimentos!$E$9:$E$30000,\"\")","v":"#N/A"},{"$f":"SUMIFS(Pagamentos!$C$9:$C$30000,Pagamentos!$G$9:$G$30000,Planilha1!C6,Pagamentos!$H$9:$H$30000,Planilha1!D6,Pagamentos!$E$9:$E$30000,\"\")","v":"#N/A"},"#N/A"]
[null,null,10,2024,"#N/A",{"$f":"SUMIFS(Recebimentos!$C$9:$C$30000,Recebimentos!$G$9:$G$30000,Planilha1!C7,Recebimentos!$H$9:$H$30000,Planilha1!D7,Recebimentos!$E$9:$E$30000,\"\")","v":"#N/A"},{"$f":"SUMIFS(Pagamentos!$C$9:$C$30000,Pagamentos!$G$9:$G$30000,Planilha1!C7,Pagamentos!$H$9:$H$30000,Planilha1!D7,Pagamentos!$E$9:$E$30000,\"\")","v":"#N/A"},"#N/A"]
[null,null,11,2024,"#N/A",{"$f":"SUMIFS(Recebimentos!$C$9:$C$30000,Recebimentos!$G$9:$G$30000,Planilha1!C8,Recebimentos!$H$9:$H$30000,Planilha1!D8,Recebimentos!$E$9:$E$30000,\"\")","v":"#N/A"},{"$f":"SUMIFS(Pagamentos!$C$9:$C$30000,Pagamentos!$G$9:$G$30000,Planilha1!C8,Pagamentos!$H$9:$H$30000,Planilha1!D8,Pagamentos!$E$9:$E$30000,\"\")","v":"#N/A"},"#N/A"]
[null,null,12,2024,"#N/A",{"$f":"SUMIFS(Recebimentos!$C$9:$C$30000,Recebimentos!$G$9:$G$30000,Planilha1!C9,Recebimentos!$H$9:$H$30000,Planilha1!D9,Recebimentos!$E$9:$E$30000,\"\")","v":"#N/A"},{"$f":"SUMIFS(Pagamentos!$C$9:$C$30000,Pagamentos!$G$9:$G$30000,Planilha1!C9,Pagamentos!$H$9:$H$30000,Planilha1!D9,Pagamentos!$E$9:$E$30000,\"\")","v":"#N/A"},"#N/A"]
[null,null,1,2025,"#N/A",{"$f":"SUMIFS(Recebimentos!$C$9:$C$30000,Recebimentos!$G$9:$G$30000,Planilha1!C10,Recebimentos!$H$9:$H$30000,Planilha1!D10,Recebimentos!$E$9:$E$30000,\"\")","v":"#N/A"},{"$f":"SUMIFS(Pagamentos!$C$9:$C$30000,Pagamentos!$G$9:$G$30000,Planilha1!C10,Pagamentos!$H$9:$H$30000,Planilha1!D10,Pagamentos!$E$9:$E$30000,\"\")","v":"#N/A"},"#N/A"]
[null,null,2,2025,"#N/A",{"$f":"SUMIFS(Recebimentos!$C$9:$C$30000,Recebimentos!$G$9:$G$30000,Planilha1!C11,Recebimentos!$H$9:$H$30000,Planilha1!D11,Recebimentos!$E$9:$E$30000,\"\")","v":"#N/A"},{"$f":"SUMIFS(Pagamentos!$C$9:$C$30000,Pagamentos!$G$9:$G$30000,Planilha1!C11,Pagamentos!$H$9:$H$30000,Planilha1!D11,Pagamentos!$E$9:$E$30000,\"\")","v":"#N/A"},"#N/A"]
[null,null,3,2025,"#N/A",{"$f":"SUMIFS(Recebimentos!$C$9:$C$30000,Recebimentos!$G$9:$G$30000,Planilha1!C12,Recebimentos!$H$9:$H$30000,Planilha1!D12,Recebimentos!$E$9:$E$30000,\"\")","v":"#N/A"},{"$f":"SUMIFS(Pagamentos!$C$9:$C$30000,Pagamentos!$G$9:$G$30000,Planilha1!C12,Pagamentos!$H$9:$H$30000,Planilha1!D12,Pagamentos!$E$9:$E$30000,\"\")","v":"#N/A"},"#N/A"]
[null,null,4,2025,"#N/A",{"$f":"SUMIFS(Recebimentos!$C$9:$C$30000,Recebimentos!$G$9:$G$30000,Planilha1!C13,Recebimentos!$H$9:$H$30000,Planilha1!D13,Recebimentos!$E$9:$E$30000,\"\")","v":"#N/A"},{"$f":"SUMIFS(Pagamentos!$C$9:$C$30000,Pagamentos!$G$9:$G$30000,Planilha1!C13,Pagamentos!$H$9:$H$30000,Planilha1!D13,Pagamentos!$E$9:$E$30000,\"\")","v":"#N/A"},"#N/A"]
[null,null,5,2025,"#N/A",{"$f":"SUMIFS(Recebimentos!$C$9:$C$30000,Recebimentos!$G$9:$G$30000,Planilha1!C14,Recebimentos!$H$9:$H$30000,Planilha1!D14,Recebimentos!$E$9:$E$30000,\"\")","v":"#N/A"},{"$f":"SUMIFS(Pagamentos!$C$9:$C$30000,Pagamentos!$G$9:$G$30000,Planilha1!C14,Pagamentos!$H$9:$H$30000,Planilha1!D14,Pagamentos!$E$9:$E$30000,\"\")","v":"#N/A"},"#N/A"]
[null,null,6,2025,"#N/A",{"$f":"SUMIFS(Recebimentos!$C$9:$C$30000,Recebimentos!$G$9:$G$30000,Planilha1!C15,Recebimentos!$H$9:$H$30000,Planilha1!D15,Recebimentos!$E$9:$E$30000,\"\")","v":"#N/A"},{"$f":"SUMIFS(Pagamentos!$C$9:$C$30000,Pagamentos!$G$9:$G$30000,Planilha1!C15,Pagamentos!$H$9:$H$30000,Planilha1!D15,Pagamentos!$E$9:$E$30000,\"\")","v":"#N/A"},"#N/A"]